bitfinex-derivatives/quotes_ETHF0:USTF0_20250330
["timestamp","ask_amount","ask_price","bid_price","bid_amount"]
[1743347487847,9.0186,1816.1,1816.0,1.10162]
[1743347492150,5.2936,1816.1,1816.0,1.10162]
[1743347492348,9.0186,1816.1,1816.0,1.10162]
[1743347494453,5.8108,1816.1,1816.0,1.10162]
[1743347494753,9.0186,1816.1,1816.0,1.10162]
[1743347495948,9.0186,1816.1,1816.0,2.52602]
[1743347500947,8.3323,1816.1,1816.0,2.52602]
[1743347501147,6.9328,1816.1,1816.0,1.10162]
[1743347503559,3.725,1816.1,1816.0,1.10162]
[1743347504960,3.725,1816.1,1815.6,0.5512]
[1743347505151,4.3095,1815.9,1815.5,2.76305287]
[1743347505457,3.723,1815.8,1815.7,1.10177]
[1743347505658,3.723,1815.8,1815.6,1.10185]
[1743347505861,3.723,1815.8,1815.6,1.10187]
[1743347505862,3.2078,1815.7,1815.6,1.10187]
[1743347506255,6.9308,1815.7,1815.6,1.10187]
[1743347507954,3.2078,1815.7,1815.6,1.10187]
[1743347512270,3.2078,1815.7,1815.6,3.60187]
[1743347512457,3.19127426,1815.7,1815.6,3.60187]
[1743347512960,3.19127426,1815.7,1815.6,1.10187]
[1743347513456,0.00826287,1816.2,1816.1,1.10156]
[1743347513661,3.73126287,1816.2,1816.1,1.10156]
[1743347523068,3.73126287,1816.2,1815.9,1.10168]
[1743347523366,3.2078,1816.0,1815.9,1.10169]
[1743347524070,0.00826287,1816.2,1816.1,1.10156]
[1743347524267,3.72926287,1816.2,1816.1,1.10156]
[1743347525772,0.00826287,1816.2,1816.1,1.10156]
[1743347526968,3.21606287,1816.2,1816.1,1.10156]
[1743347538283,4.66736287,1816.2,1816.1,1.10156]
[1743347538682,1.45956287,1816.2,1816.1,2.60636]
[1743347538883,2.16166287,1816.2,1816.1,2.60636]
[1743347539686,2.16166287,1816.2,1816.1,1.10156]
[1743347540487,2.16166287,1816.2,1816.1,2.60636]
[1743347540784,0.00826287,1816.2,1816.1,3.30646]
[1743347540986,2.16166287,1816.2,1816.1,2.60636]
[1743347542185,2.16166287,1816.2,1815.6,5.9624]
[1743347542483,3.2078,1815.7,1815.5,0.00826287]
[1743347542683,6.7183,1815.6,1815.5,1.11019287]
[1743347542887,3.719,1815.6,1815.5,1.11019287]
[1743347543086,3.719,1815.6,1815.5,1.84959287]
[1743347543484,3.719,1815.6,1815.5,2.57319287]
[1743347544790,5.4424,1815.9,1815.8,1.10175]
[1743347545082,9.1614,1815.9,1815.8,1.10175]
[1743347545989,9.1614,1815.9,1815.8,2.59245]
[1743347548989,8.4272,1815.9,1815.8,2.59245]
[1743347554788,4.7082,1815.9,1815.8,2.59245]
[1743347554987,8.4272,1815.9,1815.8,2.59245]
[1743347555188,3.718,1816.0,1815.8,1.4907]
[1743347555487,3.718,1816.0,1815.9,2.2769]
[1743347556296,3.718,1816.0,1815.9,3.37859]
[1743347556797,5.1246,1816.0,1815.9,3.37859]
[1743347557482,3.718,1816.0,1815.9,3.37859]
[1743347563099,5.1032,1816.0,1815.9,3.37859]
[1743347565399,5.1032,1816.0,1815.5,0.00826287]
[1743347565613,3.2078,1815.7,1815.5,2.61455287]
[1743347565900,3.2078,1815.7,1815.5,1.11019287]
[1743347565901,6.5461,1815.6,1815.5,1.11019287]
[1743347570694,6.5461,1815.6,1815.5,2.50929287]
[1743347571796,1.414,1815.6,1815.5,2.50929287]
[1743347571996,3.717,1815.9,1815.8,1.10175]
[1743347572203,2.9277,1816.0,1815.9,1.10169]
[1743347572504,2.9277,1816.0,1815.8,1.10171]
[1743347572505,6.26852,1816.0,1815.8,1.10171]
[1743347572706,4.30951,1815.9,1815.7,2.60397]
[1743347573099,3.2078,1815.9,1815.8,1.10175]
[1743347573401,5.1669,1816.0,1815.9,1.10169]
[1743347574503,5.1669,1816.0,1815.9,1.81699]
[1743347575606,4.44,1816.0,1815.9,2.57599]
[1743347580507,0.723,1816.0,1815.9,2.57599]
[1743347581812,4.4576,1816.1,1816.0,1.10162]
[1743347582109,4.4576,1816.1,1816.0,2.62102]
[1743347582313,0.00826287,1816.2,1816.1,1.10156]
[1743347582314,3.72426287,1816.2,1816.1,1.10156]
[1743347582707,4.43636287,1816.2,1816.1,1.10156]
[1743347584012,8.74566287,1816.2,1816.0,2.62099]
[1743347584205,1.10156,1816.1,1816.0,2.62099]
[1743347584504,8.74570287,1816.2,1816.0,1.10159]
[1743347585305,1.438,1816.1,1816.0,1.10159]
[1743347586908,7.64416287,1816.2,1816.1,1.10156]
[1743347588311,9.11256287,1816.2,1816.1,1.10156]
[1743347588511,10.21406287,1816.2,1815.9,1.4127]
[1743347588817,1.4684,1816.1,1815.9,1.4127]
[1743347589007,1.4684,1816.1,1816.0,1.10162]
[1743347593416,1.4684,1816.1,1816.0,1.86122]
[1743347597225,6.93006287,1816.2,1816.1,1.10156]
[1743347597421,3.21606287,1816.2,1816.1,2.49086]
[1743347597731,0.00826287,1816.2,1816.1,2.49086]
[1743347599921,3.2078,1816.4,1816.3,1.10144]
[1743347600319,3.2078,1816.4,1816.3,7.31444]
[1743347600520,2.0672,1816.4,1816.3,8.02874]
[1743347601730,2.0672,1816.4,1816.3,8.46790807]
[1743347602028,2.0672,1816.4,1816.3,5.52874]
[1743347603327,2.0672,1816.4,1816.3,6.27564]
[1743347603514,0.00826287,1816.5,1816.4,1.10138]
[1743347603721,3.21606287,1816.5,1816.4,2.60818]
[1743347617933,3.96516287,1816.5,1816.4,2.60818]
[1743347620632,0.00826287,1816.5,1816.4,5.81598]
[1743347624633,1.41446287,1816.5,1816.4,5.81598]
[1743347625937,1.41446287,1816.5,1816.4,4.30918]
[1743347628350,1.41446287,1816.5,1816.4,1.10138]
[1743347629942,1.41446287,1816.5,1816.4,2.59948]
[1743347631352,5.12246287,1816.5,1816.3,4.3092]
[1743347631554,0.7113,1816.4,1816.3,4.3092]
[1743347631744,2.124,1816.4,1816.3,4.3092]
[1743347632647,0.7113,1816.4,1816.3,4.3092]
[1743347632843,0.7113,1816.4,1816.3,5.7817]
[1743347634955,1.50716287,1816.5,1816.4,1.10138]
[1743347635153,0.00826287,1816.5,1816.4,2.57388]
[1743347638055,0.00826287,1816.5,1816.4,3.27358]
[1743347644356,3.2078,1817.0,1816.9,1.10108]
[1743347644557,2.837,1817.4,1817.0,2.75255]
[1743347644760,1.3851,1817.3,1817.2,1.1009]
[1743347645064,1.4519,1817.4,1817.1,5.9602]
[1743347645065,1.4519,1817.4,1817.3,1.10084]
[1743347645247,1.4519,1817.4,1817.3,4.30864]
[1743347645653,2.9073,1817.4,1817.3,4.30864]
[1743347645847,25.7586406,1817.5,1817.4,1.10078]
[1743347646065,25.7586406,1817.5,1817.4,2.58008]
[1743347646751,25.7586406,1817.5,1817.4,3.31978]
[1743347647254,0.00826287,1817.5,1817.4,3.31978]
[1743347647952,0.00826287,1817.5,1817.4,10.34173034]
[1743347649158,0.00826287,1817.5,1817.4,9.60203034]
[1743347649359,0.00826287,1817.5,1817.4,2.58008]
[1743347657869,0.00826287,1817.5,1817.4,3.02366215]
[1743347660170,0.00826287,1817.5,1817.4,2.58008]
[1743347660367,0.00826287,1817.5,1817.4,1.10078]
[1743347661068,1.46776287,1817.5,1817.4,1.10078]
[1743347662368,1.46776287,1817.5,1817.4,2.49378]
[1743347664275,1.46776287,1817.5,1817.4,1.10078]
[1743347666281,1.46776287,1817.5,1817.4,2.61688]
[1743347678383,0.00826287,1817.5,1817.4,9.83123374]
[1743347678581,2.1756,1817.8,1817.7,1.10059]
[1743347682387,5.8766,1817.8,1817.7,1.10059]
[1743347686388,2.1756,1817.8,1817.7,1.10059]
[1743347695296,2.1756,1817.8,1817.7,2.50479]
[1743347701501,0.69306287,1817.9,1817.8,1.10053]
[1743347701706,0.69306287,1817.9,1817.8,2.54003]
[1743347702214,3.90086287,1817.9,1817.7,1.10058]
[1743347702502,5.8168,1817.8,1817.6,1.10063]
[1743347702713,1.407,1817.7,1817.6,1.10063]
[1743347712313,0.7118,1817.8,1817.7,1.10059]
[1743347712522,2.1756,1817.8,1817.7,2.51369]
[1743347712716,4.39006287,1817.9,1817.8,1.10053]
[1743347712919,4.39006287,1817.9,1817.8,2.51363]
[1743347713313,2.15686287,1817.9,1817.8,2.51363]
[1743347714716,2.15686287,1817.9,1817.8,1.10053]
[1743347721425,0.00826287,1817.9,1817.8,1.10053]
[1743347721627,0.00826287,1817.9,1817.8,4.30833]
[1743347721833,0.00826287,1817.9,1817.8,5.04713]
[1743347722526,1.4037,1818.4,1818.3,1.10023]
[1743347723225,1.4037,1818.4,1818.3,2.48363]
[1743347723425,23.76843857,1818.5,1818.4,1.10017]
[1743347723630,23.76843857,1818.5,1818.4,2.48357]
[1743347723931,23.77670144,1818.5,1818.4,5.69137]
[1743347724125,0.00826287,1818.5,1818.4,5.69137]
[1743347727126,0.71326287,1818.5,1818.4,5.69137]
[1743347727526,0.71326287,1818.5,1818.4,1.10017]
[1743347728330,0.00826287,1818.5,1818.4,1.10017]
[1743347728728,0.00826287,1818.5,1818.4,2.56717]
[1743347729432,1.10842287,1818.5,1818.3,1.10019]
[1743347729735,2.1811,1818.4,1818.3,1.10019]
[1743347729932,2.8799,1818.4,1818.3,2.54999]
[1743347733036,3.70326287,1818.5,1818.4,1.10017]
[1743347733037,0.00826287,1818.5,1818.4,1.10017]
[1743347733234,0.00826287,1818.5,1818.4,2.57357]
[1743347733539,1.48746287,1818.5,1818.4,2.57357]
[1743347736334,0.00826287,1818.5,1818.4,5.78137]
[1743347755252,0.00826287,1818.5,1818.4,13.02427119]
[1743347756850,0.00826287,1818.5,1818.4,13.72717119]
[1743347757250,0.00826287,1818.5,1818.4,14.44317119]
[1743347759147,0.00826287,1818.5,1818.4,18.13417119]
[1743347760153,0.7571,1819.0,1818.9,1.09987]
[1743347760342,2.1532,1819.0,1818.9,1.09987]
[1743347760749,2.1532,1819.0,1818.9,2.60407]
[1743347762955,0.7156,1819.1,1819.0,1.09981]
[1743347763259,77.79523857,1819.5,1819.0,1.09981]
[1743347763260,2.083,1819.3,1819.2,1.09969]
[1743347763451,2.083,1819.3,1819.2,2.55519]
[1743347764852,0.6869,1819.3,1819.2,5.76299]
[1743347765057,0.7028,1819.4,1819.3,1.09963]
[1743347765257,0.7028,1819.4,1819.3,2.55513]
[1743347768559,1.4574,1819.5,1819.4,1.09957]
[1743347768857,1.4574,1819.5,1819.4,2.46937]
[1743347769259,1.4574,1819.5,1819.4,5.67717]
[1743347769462,23.76843857,1819.8,1819.7,1.09939]
[1743347769757,23.76843857,1819.8,1819.7,4.78839]
[1743347769758,23.18493269,1819.8,1819.7,4.78839]
[1743347770258,23.18493269,1819.8,1819.7,9.65138329]
[1743347770455,23.18493269,1819.8,1819.7,1.09939]
[1743347770959,23.18493269,1819.8,1819.6,3.2078]
[1743347770960,24.66113269,1819.8,1819.6,3.2078]
[1743347771164,24.66113269,1819.8,1819.5,1.09948]
[1743347771165,1.4762,1819.7,1819.5,1.09948]
[1743347771357,0.7047,1819.6,1819.5,1.09948]
[1743347771553,1.4414,1819.6,1819.5,1.09948]
[1743347772757,1.4414,1819.6,1819.2,3.7582]
[1743347773063,1.4733,1819.5,1819.4,1.09957]
[1743347775963,1.4733,1819.5,1819.3,1.09959]
[1743347776166,3.2078,1819.4,1819.1,1.10799287]
[1743347776361,1.09969,1819.2,1819.1,0.00826287]
[1743347776567,6.97257,1819.3,1819.1,1.10801287]
[1743347776868,3.28009,1819.2,1819.1,0.00826287]
[1743347777068,3.28009,1819.2,1819.0,1.09976]
[1743347777268,1.4779,1819.1,1819.0,1.09976]
[1743347780672,2.57765,1819.1,1819.0,1.09976]
[1743347780976,1.09987,1818.9,1818.8,3.2078]
[1743347781380,1.09987,1818.9,1818.8,4.30773]
[1743347781572,2.53797,1818.9,1818.8,4.30773]
[1743347781775,2.53797,1818.9,1818.8,3.2078]
[1743347782274,7.1459,1818.9,1818.2,3.2078]
[1743347782473,2.186,1818.8,1818.2,3.2078]
[1743347782686,6.22613,1818.7,1818.5,1.10009]
[1743347782976,1.10012,1818.5,1818.3,1.10019]
[1743347783171,2.186,1818.4,1818.3,1.10019]
[1743347783674,1.10005,1818.6,1818.3,1.3844]
[1743347783871,1.4381,1818.5,1818.4,1.10014]
[1743347784274,2.1877,1818.5,1818.4,1.10014]
[1743347786781,2.1877,1818.5,1818.4,2.59394]
[1743347787681,3.2078,1819.1,1818.4,20.74025813]
[1743347787885,0.7168,1819.0,1818.8,1.09989]
[1743347788184,0.7168,1819.0,1818.9,2.60577]
[1743347788481,1.81661,1819.0,1818.6,3.2078]
[1743347788676,1.09988,1818.9,1818.7,1.09997]
[1743347788878,5.50463,1819.0,1818.8,1.09992]
[1743347789079,1.09989,1818.9,1818.7,1.09996]
[1743347789385,8.71245,1819.0,1818.8,1.09993]
[1743347789587,1.09987,1818.9,1818.7,2.60585]
[1743347789788,7.6126,1819.0,1818.6,3.2078]
[1743347789983,1.09999,1818.7,1818.6,3.2078]
[1743347790187,4.78799,1818.7,1818.6,3.2078]
[1743347790388,3.688,1818.7,1818.6,1.10005]
[1743347792078,4.78801,1818.7,1818.5,1.10007]
[1743347792384,0.7165,1818.6,1818.5,1.10007]
[1743347792783,2.1176,1818.6,1818.5,1.10007]
[1743347792984,0.7165,1818.6,1818.5,1.10007]
[1743347793183,2.844,1818.6,1818.5,1.10007]
[1743347793883,3.94405,1818.6,1818.4,1.5059]
[1743347794087,1.3692,1818.5,1818.3,3.2078]
[1743347794393,4.78819,1818.4,1818.2,1.10855287]
[1743347794584,1.3692,1818.3,1818.2,1.10855287]
[1743347794796,2.1203,1818.3,1818.2,1.10855287]
[1743347795489,0.7165,1818.6,1818.5,1.10011]
[1743347796291,6.8958,1818.8,1818.7,1.09999]
[1743347796484,3.2078,1818.8,1818.7,1.09999]
[1743347798290,1.489,1819.1,1819.0,1.09981]
[1743347798498,0.7379,1819.1,1819.0,1.09981]
[1743347799897,0.00826287,1819.2,1819.1,1.09975]
[1743347800094,0.70836287,1819.2,1819.1,1.09975]
[1743347800495,0.00826287,1819.2,1819.1,1.09975]
[1743347800690,0.00826287,1819.2,1819.1,4.30755]
[1743347801494,7.6471,1819.6,1819.5,1.09951]
[1743347801701,4.4393,1819.6,1819.5,1.09951]
[1743347802196,0.7001,1819.7,1819.6,1.09945]
[1743347802391,23.66623513,1819.8,1819.7,1.09939]
[1743347802897,0.00826287,1819.9,1819.8,1.09932]
[1743347803495,0.00826287,1819.9,1819.8,4.30712]
[1743347803801,0.00826287,1819.9,1819.8,1.09932]
[1743347804798,0.00826287,1819.9,1819.7,1.09935]
[1743347804999,1.41256287,1819.9,1819.8,1.09932]
[1743347805599,0.00826287,1819.9,1819.8,1.09932]
[1743347807398,0.00826287,1819.9,1819.8,4.30712]
[1743347807901,0.00826287,1819.9,1819.8,4.85672]
[1743347809304,0.00826287,1819.9,1819.8,4.30712]
[1743347812201,1.10752287,1819.9,1819.8,3.2078]
[1743347812406,0.00826287,1819.9,1819.8,4.30712]
[1743347812704,1.40466287,1819.9,1819.8,4.30712]
[1743347812904,1.09939,1819.7,1819.6,0.00826287]
[1743347813105,1.4576,1819.8,1819.6,0.00826287]
[1743347813305,9.38859,1819.7,1819.6,0.00826287]
[1743347813711,8.2892,1819.7,1819.6,1.10771287]
[1743347815109,9.38859,1819.7,1819.6,1.10771287]
[1743347815315,9.38859,1819.7,1819.6,0.00826287]
[1743347818210,4.6042,1819.7,1819.6,1.10771287]
[1743347818515,3.2078,1819.7,1819.6,2.56141287]
[1743347820318,3.97814,1819.8,1819.6,2.56141287]
[1743347820515,3.97814,1819.8,1819.7,1.4537]
[1743347820720,2.55694,1819.8,1819.7,1.4537]
[1743347821016,1.4576,1819.8,1819.7,2.55309]
[1743347821220,2.55692,1819.8,1819.7,2.55309]
[1743347822514,1.4576,1819.8,1819.7,2.55309]
[1743347822715,0.7445,1819.8,1819.7,2.55309]
[1743347822916,0.00826287,1819.9,1819.8,1.09932]
[1743347823111,0.00826287,1819.9,1819.8,2.59652]
[1743347823321,0.00826287,1819.9,1819.8,3.33232]
[1743347824420,0.00826287,1819.9,1819.8,2.59652]
[1743347827922,0.00826287,1819.9,1819.8,5.80432]
[1743347832025,0.02068298,1820.3,1820.2,1.09908]
[1743347832821,0.02068298,1820.3,1820.2,2.52478]
[1743347833920,0.00826287,1820.4,1820.3,1.09902]
[1743347834127,0.00826287,1820.4,1820.3,2.48832]
[1743347834923,1.10722287,1820.4,1820.3,1.3893]
[1743347835121,0.00826287,1820.4,1820.3,1.3893]
[1743347835320,1.41496287,1820.4,1820.3,1.3893]
[1743347835523,2.51392287,1820.4,1820.3,1.3893]
[1743347835825,1.09903,1820.3,1819.9,1.09926]
[1743347836020,0.6975,1820.2,1820.1,2.48842]
[1743347836531,3.21606287,1820.4,1820.1,1.3893]
[1743347836830,5.40806287,1820.4,1820.3,1.09902]
[1743347837021,0.00826287,1820.4,1820.3,1.09902]
[1743347837525,2.21606287,1820.4,1820.3,1.09902]
[1743347838223,0.00826287,1820.4,1820.3,1.09902]
[1743347839221,1.50276287,1820.4,1820.3,1.09902]
[1743347839422,2.21606287,1820.4,1820.3,1.09902]
[1743347839926,0.00826287,1820.4,1820.3,1.09902]
[1743347840234,0.00826287,1820.4,1820.3,5.67992]
[1743347840923,0.00826287,1820.4,1820.3,6.11001873]
[1743347841326,0.01992,1820.6,1820.5,1.0989]
[1743347841524,0.01992,1820.6,1820.5,4.3067]
[1743347843229,3.2078,1821.2,1820.9,1.09862]
[1743347843437,3.2078,1821.2,1821.0,1.0986]
[1743347843438,2.8619,1821.1,1821.0,1.0986]
[1743347844236,0.7279,1821.1,1821.0,1.0986]
[1743347844423,0.7279,1821.1,1821.0,2.5427]
[1743347845234,2.1206,1821.1,1821.0,2.5427]
[1743347846332,0.7279,1821.1,1821.0,2.5427]
[1743347846532,2.2255,1821.1,1821.0,2.5427]
[1743347847429,2.2255,1821.1,1820.9,0.00823972]
[1743347847430,2.2255,1821.1,1820.9,1.10686972]
[1743347847633,2.203,1821.0,1820.9,2.56546972]
[1743347848839,0.7279,1821.1,1821.0,1.0986]
[1743347849036,0.7279,1821.1,1821.0,2.4784]
[1743347849433,2.1796,1821.1,1821.0,2.4784]
[1743347851039,1.0986,1821.0,1820.9,0.00823972]
[1743347851234,5.7581,1821.0,1820.9,0.00823972]
[1743347851434,1.09866,1820.9,1820.7,1.3798]
[1743347851642,1.09866,1820.9,1820.7,2.47853]
[1743347851643,1.4279,1820.8,1820.7,2.47853]
[1743347853339,0.71376255,1820.9,1820.8,1.09872]
[1743347853638,2.14166255,1820.9,1820.8,2.61692]
[1743347855236,0.00816255,1820.9,1820.8,2.61692]
[1743347855442,0.00816255,1820.9,1820.8,3.32902]
[1743347856065,0.00816255,1820.9,1820.8,3.87862]
[1743347856677,3.2078,1821.3,1821.2,1.09848]
[1743347856962,28.49504773,1822.3,1822.2,1.09788]
[1743347856963,25.75037773,1822.3,1822.2,1.09788]
[1743347857162,25.75037773,1822.3,1822.2,4.30568]
[1743347857670,25.75037773,1822.3,1822.2,5.67448]
[1743347857865,25.74213801,1822.3,1822.2,5.67448]
[1743347858162,51.16476292,1823.0,1822.9,1.09746]
[1743347858356,30.59918964,1823.0,1822.9,8.03726]
[1743347858554,3.2078,1824.0,1822.9,18.82776444]
[1743347858757,3.2078,1823.7,1823.3,1.09721]
[1743347858949,3.2078,1823.7,1823.0,33.3646]
[1743347858950,3.2078,1824.0,1823.9,1.09685]
[1743347859148,3.2078,1824.0,1823.4,13.20079514]
[1743347859442,8.6824,1823.9,1823.7,1.09694]
[1743347859940,4.1032,1823.8,1823.7,4.30474]
[1743347860140,4.1032,1823.8,1823.7,3.2078]
[1743347860339,10.48001608,1823.8,1823.7,3.2078]
[1743347860537,14.78474608,1823.8,1823.3,0.00823972]
[1743347860737,4.1032,1823.7,1823.4,1.09714]
[1743347860936,5.5775,1823.7,1823.3,0.00823972]
[1743347861137,7.311,1823.6,1823.3,0.00823972]
[1743347861436,3.2078,1823.4,1823.3,0.00823972]
[1743347861741,1.09739,1823.1,1822.7,3.2078]
[1743347861941,3.2078,1823.2,1822.7,3.2078]
[1743347862144,1.4743,1823.1,1822.7,3.2078]
[1743347862343,2.57167,1823.1,1822.7,3.2078]
[1743347862537,4.1032,1823.0,1822.7,3.2078]
[1743347862743,4.6821,1822.9,1822.7,0.00823972]
[1743347862947,5.5775,1822.9,1822.7,0.00823972]
[1743347863141,4.1032,1822.8,1822.7,0.00823972]
[1743347863535,9.10861608,1822.8,1822.7,1.10581972]
[1743347863848,1.4743,1822.9,1822.8,1.09752]
[1743347864040,4.1032,1822.8,1822.7,2.59827972]
[1743347864241,4.1032,1822.8,1822.7,2.59831972]
[1743347864440,9.10861608,1822.8,1822.7,2.59831972]
[1743347864749,9.10861608,1822.8,1822.7,5.80611972]
[1743347864948,9.10861608,1822.8,1822.7,2.59831972]
[1743347865249,9.10861608,1822.8,1822.7,5.80611972]
[1743347866151,0.00823972,1823.1,1823.0,1.09739]
[1743347866344,5.0136558,1823.1,1823.0,1.09739]
[1743347866645,9.1168558,1823.1,1823.0,2.58989]
[1743347866947,0.00823972,1823.1,1823.0,2.58989]
[1743347867343,4.11143972,1823.1,1823.0,2.58989]
[1743347867852,9.1168558,1823.1,1823.0,1.4925]
[1743347868149,10.2141858,1823.1,1822.7,3.21603972]
[1743347868350,5.5301,1823.0,1822.7,1.44723972]
[1743347868652,5.5301,1823.0,1822.8,4.30528]
[1743347868946,4.1032,1822.9,1822.7,1.44723972]
[1743347869145,4.1032,1822.9,1822.7,0.00823972]
[1743347869340,4.1032,1822.8,1822.7,1.10579972]
[1743347869743,9.10861608,1822.8,1822.7,1.10579972]
[1743347870145,10.20613608,1822.8,1822.7,0.00823972]
[1743347870539,9.10861608,1822.8,1822.7,0.00823972]
[1743347870852,9.10861608,1822.8,1822.7,1.10578972]
[1743347871349,0.00823972,1823.1,1822.7,3.21603972]
[1743347871647,4.11143972,1823.1,1823.0,1.09739]
[1743347871845,0.7221,1823.7,1823.2,2.74316]
[1743347872046,0.7221,1823.7,1823.1,3.2078]
[1743347872047,3.2078,1823.5,1823.1,3.2078]
[1743347872251,1.4871,1823.4,1823.1,4.6434]
[1743347872447,11.69289608,1823.4,1823.1,4.6434]
[1743347872653,4.1032,1823.3,1823.1,4.6434]
[1743347872848,1.4871,1823.2,1822.8,3.936]
[1743347873046,3.938,1823.1,1822.7,4.31357972]
[1743347873341,5.5003,1823.0,1822.7,0.00823972]
[1743347873549,5.5003,1823.0,1822.9,1.09746]
[1743347873746,5.5003,1823.0,1822.8,1.09749]
[1743347873747,4.1032,1822.9,1822.8,1.09749]
[1743347873952,5.5003,1822.9,1822.7,1.10577972]
[1743347874150,5.20072,1822.8,1822.7,0.00823972]
[1743347874352,6.59782,1822.8,1822.7,0.00823972]
[1743347874548,10.50571608,1822.8,1822.7,0.00823972]
[1743347875455,10.50571608,1822.8,1822.7,1.10581972]
[1743347875643,9.10861608,1822.8,1822.7,1.10581972]
[1743347876243,9.10861608,1822.8,1822.7,0.00823972]
[1743347876453,9.10861608,1822.8,1822.7,1.10581972]
[1743347876658,9.10861608,1822.8,1822.7,0.00823972]
[1743347877055,10.20613608,1822.8,1822.7,0.00823972]
[1743347877247,11.60913608,1822.8,1822.7,0.00823972]
[1743347878460,2.7441,1822.6,1821.4,2.74585]
[1743347878660,1.098,1822.0,1821.9,1.4138]
[1743347878963,7.1508,1822.1,1821.5,7.77167926]
[1743347879158,1.09822,1821.7,1821.5,1.4203]
[1743347879358,1.5174,1821.6,1821.5,1.4203]
[1743347879560,4.7252,1821.6,1821.4,0.00823972]
[1743347879764,4.1032,1821.6,1821.5,1.0983]
[1743347879954,4.1032,1821.6,1821.5,8.14303283]
[1743347880661,0.00823972,1821.8,1821.7,1.09818]
[1743347881564,5.3602558,1821.8,1821.7,1.09818]
[1743347882061,6.7901558,1821.8,1821.7,1.09818]
[1743347882271,0.00823972,1821.8,1821.7,4.30598]
[1743347882557,1.4299,1822.2,1821.7,9.76159962]
[1743347882759,1.4299,1822.2,1822.0,1.09798]
[1743347882760,4.1032,1822.1,1822.0,1.09798]
[1743347883265,5.35201608,1822.1,1821.9,1.09801]
[1743347883460,5.5331,1822.0,1821.9,1.09801]
[1743347883959,6.78191608,1822.0,1821.9,1.09801]
[1743347884360,6.78191608,1822.0,1821.6,7.39301]
[1743347884361,6.78191608,1822.0,1821.7,1.09816]
[1743347884664,4.1032,1821.9,1821.6,3.21971]
[1743347884863,4.1032,1821.9,1821.8,1.09812]
[1743347885263,5.35201608,1821.9,1821.8,1.09812]
[1743347886257,4.6377,1822.1,1822.0,1.098]
[1743347886560,5.03578,1822.4,1822.2,1.09784]
[1743347886758,1.09784,1822.3,1821.9,3.2078]
[1743347887059,4.30571,1822.2,1821.8,1.4701]
[1743347887264,2.48846,1822.1,1821.9,1.09804]
[1743347887461,1.09809,1821.9,1821.7,7.23820374]
[1743347887668,4.1032,1822.0,1821.6,2.1716]
[1743347887964,4.1032,1821.9,1821.8,1.09812]
[1743347888167,5.5268,1821.9,1821.8,1.09812]
[1743347888462,6.77561608,1821.9,1821.8,1.09812]
[1743347889865,1.4947,1822.3,1821.8,2.7452]
[1743347890059,1.4947,1822.3,1822.1,1.09794]
[1743347890060,4.1032,1822.2,1822.1,1.09794]
[1743347890361,4.1032,1822.2,1822.1,2.60864]
[1743347890566,5.35201608,1822.2,1822.1,2.60864]
[1743347891263,9.28801608,1822.2,1821.8,3.2078]
[1743347891565,1.09806,1821.9,1821.7,1.09814]
[1743347891766,1.4389,1821.8,1821.7,1.09814]
[1743347891962,1.4389,1821.8,1821.4,2.75400972]
[1743347891963,4.6467,1821.8,1821.4,0.00823972]
[1743347892165,3.2078,1821.6,1821.5,1.0983]
[1743347892464,5.5659,1821.7,1821.6,1.09824]
[1743347892667,2.71151608,1821.7,1821.6,1.09824]
[1743347892865,6.81471608,1821.7,1821.6,1.09824]
[1743347894465,3.2078,1821.8,1821.7,1.09818]
[1743347894672,7.311,1821.8,1821.7,1.09818]
[1743347895173,4.1032,1821.8,1821.7,1.09818]
[1743347895774,5.35201608,1821.8,1821.7,1.09818]
[1743347896773,4.1032,1821.8,1821.7,1.09818]
[1743347896971,0.7152,1822.2,1822.1,1.09794]
[1743347897173,4.1032,1822.1,1822.0,1.09798]
[1743347897675,5.35201608,1822.1,1822.0,1.09798]
[1743347897972,7.1708,1822.3,1822.2,1.09788]
[1743347897973,3.2078,1822.3,1822.2,1.09788]
[1743347898272,8.55981608,1822.3,1822.2,1.09788]
[1743347898867,5.35201608,1822.3,1822.2,1.09788]
[1743347902675,5.35201608,1822.3,1822.2,4.30568]
[1743347902883,5.35201608,1822.3,1822.2,11.54566617]
[1743347903173,5.35201608,1822.3,1822.2,1.09788]
[1743347903563,8.55981608,1822.3,1822.1,2.53271]
[1743347903765,4.1032,1822.2,1822.1,2.53274]
[1743347904166,5.35201608,1822.2,1822.1,2.53274]
[1743347904467,6.10861608,1822.2,1822.1,1.09794]
[1743347904872,4.1032,1822.2,1822.1,1.09794]
[1743347905171,5.35201608,1822.2,1822.1,1.09794]
[1743347905371,6.80471608,1822.2,1822.1,1.09794]
[1743347906178,8.63629608,1822.2,1822.0,1.09796]
[1743347906372,4.1032,1822.1,1822.0,2.545]
[1743347906677,5.4859,1822.1,1822.0,2.545]
[1743347906878,6.73471608,1822.1,1822.0,2.545]
[1743347907176,4.1032,1822.1,1822.0,2.545]
[1743347907371,1.09777,1822.4,1822.0,1.447]
[1743347907372,0.6947,1822.4,1822.0,1.447]
[1743347907580,4.1032,1822.3,1822.2,1.09788]
[1743347907778,5.4859,1822.3,1822.2,1.09788]
[1743347908078,6.73471608,1822.3,1822.2,1.09788]
[1743347908378,5.4859,1822.3,1822.2,1.09788]
[1743347908673,6.73471608,1822.3,1822.2,1.09788]
[1743347909077,3.2078,1822.5,1822.4,1.09776]
[1743347909277,4.45661608,1822.5,1822.4,1.09776]
[1743347909478,9.98331608,1822.5,1822.4,1.09776]
[1743347911882,10.67871608,1822.5,1822.4,1.09776]
[1743347912978,10.67871608,1822.5,1822.2,1.3979]
[1743347913181,2.7447,1822.2,1821.5,3.2078]
[1743347913478,3.2078,1821.7,1821.3,1.4102]
[1743347913681,2.8869,1821.6,1821.5,1.0983]